Cogmind - Beta 12 @@@ ROGUE MODE // 2023.04.14 @ 19:56:51 Player: Inkie Result: Destroyed by KP-D39(z) with Makeshift Spear Performance ------------- Evolutions (3) 1500 Regions Visited (14) 2800 Robots Destroyed (113) 565 Value Destroyed (2760) 2760 Prototype IDs (12) 240 Alien Tech Used (0) 0 Bonus (1421) 1421 TOTAL SCORE: 9286 Bonus ------- High Alert Combat Kills 50 Follower Combat Kills 171 Entered Garrisons 200 Used RIF Installer 1000 Cogmind --------- Core Integrity 0/700 Matter 169/300 Energy 100/100 System Corruption 0% Temperature Cool (0) Movement Flying (20) Location -7/Zion Parts ------- > --- POWER (1) -------- Fusion Compressor > --- PROPULSION (4) --- Cooled VTOL Module Cooled VTOL Module Cooled VTOL Module Cooled VTOL Module > --- UTILITY (6) ------ Small Storage Unit Experimental Sensor Array Improved Signal Interpreter Improved Propulsion Shielding Improved Medium Armor Plating > --- WEAPON (2) ------- Great Axe > --- INVENTORY (8) ---- Improved Propulsion Shielding Trap Extractor (4/4 Blade) Improved Trap Extractor (6/6 Shock) Improved Trap Extractor (4/6 Shock) Thief Drone Bay (3/3) Phasing AFG Heavy Missile Launcher Peak State ------------ > --- POWER ------------ Fusion Compressor > --- PROPULSION ------- Cooled VTOL Module Cooled VTOL Module Cooled VTOL Module Cooled VTOL Module > --- UTILITY ---------- Small Storage Unit Experimental Sensor Array Improved Signal Interpreter Authchip [Armor] Authchip [Armor] System Restoration Module > --- WEAPON ----------- Mini Grenade Launcher Great Axe > --- INVENTORY -------- Advanced ECM Suite Improved Medium Armor Plating Trap Extractor Trap Extractor Improved Trap Extractor Thief Drone Bay Gatling Laser Heavy Missile Launcher [Rating: 59] Favorites ----------- Power Heavy Ion Engine Engine Heavy Ion Engine Power Core Fusion Compressor Propulsion Cooled VTOL Module Treads Light Treads Wheel Compact Wheel Flight Unit Cooled VTOL Module Utility Structural Scanner Device Structural Scanner Storage High-capacity Storage Unit Processor Improved Signal Interpreter Hackware Hacking Suite Protection Improved Propulsion Shielding Weapon Improved Assault Rifle Energy Gun Medium Laser Energy Cannon EM Pulse Cannon Ballistic Gun Improved Assault Rifle Launcher Mini Grenade Launcher Impact Weapon Impact Mace Slashing Weapon Great Axe Piercing Weapon Spear Special Melee Weapon Improved Datajack Build | -11 -10 -10 -9 -9 -9 -8 -8 -8 -7 -7 -7 -7 -7 -7 ------- Run | Jun Mat Min Mat Min Exi Min Mat Gar Fac Was Fac Low Low Zio Slots Evolved 6 | . . . 2 . . . 2 . 2 . . . . . Power . | . . . . . . . . . . . . . . . Propulsion 2 | . . . . . . . 2 . . . . . . . Utility 4 | . . . 2 . . . . . 2 . . . . . Weapon . | . . . . . . . . . . . . . . . Parts Attached 126 | 6 2 5 19 3 . 12 7 14 14 1 36 3 2 2 Power 8 | 1 . 1 1 . . 1 . . 2 . 2 . . . Engine 3 | 1 . . 1 . . . . . 1 . . . . . Core 5 | . . 1 . . . 1 . . 1 . 2 . . . Reactor . | . . . . . . . . . . . . . . . Propulsion 27 | 2 . . 5 . . 3 4 . 4 . 9 . . . Treads 9 | 2 . . 5 . . . 2 . . . . . . . Leg . | . . . . . . . . . . . . . . . Wheel 4 | . . . . . . 2 2 . . . . . . . Hover . | . . . . . . . . . . . . . . . Flight 14 | . . . . . . 1 . . 4 . 9 . . . Utility 48 | . 2 4 7 3 . 1 3 4 4 1 17 1 . 1 Device 27 | . 1 4 3 3 . . . 1 2 1 11 1 . . Storage 3 | . 1 . . . . . 1 . 1 . . . . . Processor 2 | . . . . . . . . 1 1 . . . . . Hackware 7 | . . . 1 . . . . 2 . . 4 . . . Protection 9 | . . . 3 . . 1 2 . . . 2 . . 1 Artifact . | . . . . . . . . . . . . . . . Weapon 43 | 3 . . 6 . . 7 . 10 4 . 8 2 2 1 Energy Gun 2 | 2 . . . . . . . . . . . . . . Energy Cannon 5 | . . . 2 . . . . 3 . . . . . . Ballistic Gun 12 | 1 . . 4 . . 5 . 2 . . . . . . Ballistic Cannon . | . . . . . . . . . . . . . . . Launcher 12 | . . . . . . 2 . 5 . . 3 1 1 . Special Weapon . | . . . . . . . . . . . . . . . Impact Weapon 1 | . . . . . . . . . 1 . . . . . Slashing Weapon 5 | . . . . . . . . . 2 . 2 . . 1 Piercing Weapon 1 | . . . . . . . . . . . 1 . . . Special Melee Weapon 5 | . . . . . . . . . 1 . 2 1 1 . Unidentified Prototypes 7 | . . 2 2 . . . . . 2 . 1 . . . Parts Lost 16 | . . . 1 2 . 3 . 4 . . 6 . . . Power 2 | . . . . . . . . 1 . . 1 . . . Propulsion 3 | . . . . 1 . 1 . 1 . . . . . . Utility 6 | . . . 1 1 . . . 1 . . 3 . . . Weapon 5 | . . . . . . 2 . 1 . . 2 . . . Highest Loss Streak 4 | . . . 1 2 . 3 . 4 . . 3 . . . To Critical Strikes . | . . . . . . . . . . . . . . . Average Slot Usage (%) 93 | . 96 100 91 95 77 93 94 87 90 100 95 92 92 83 Engine 5 | . 14 13 2 11 11 5 . . 2 . . . . . Core 4 | . . . 8 . . 5 9 3 2 7 6 7 7 7 Treads 12 | . 28 28 21 20 11 2 9 12 1 . . . . . Wheel 3 | . . . . . . 16 23 18 3 . . . . . Flight 8 | . . . . . . . . . 22 30 29 30 30 30 Device 13 | . 11 14 11 21 22 22 13 6 16 15 10 7 7 7 Storage 9 | . 13 14 11 11 11 11 9 9 6 7 7 7 7 7 Processor 1 | . . . . . . . . . 1 7 7 7 7 7 Hackware 6 | . . . 6 9 . . . 14 15 15 13 . . . Protection 3 | . . . 6 . . 7 11 5 . . 3 15 15 16 Energy Gun 2 | . 14 14 2 . . . . . . . . . . . Ballistic Gun 12 | . 14 14 19 22 22 21 18 6 . . . . . . Launcher 1 | . . . . . . . . 6 1 . 3 . . . Slashing Weapon 1 | . . . . . . . . . 5 7 5 7 7 3 Special Melee Weapon 1 | . . . . . . . . . 4 7 3 6 7 2 Naked Turns . | . . . . . . . . . . . . . . . Heaviest Build 103 | 9 50 50 59 57 57 62 101 103 91 15 21 26 26 27 Greatest Support 42 | 40 40 40 40 40 20 26 42 32 32 20 28 20 20 24 Greatest Overweight (x) 18 | . 1 1 1 2 2 18 3 3 2 . 4 1 1 2 Average Overweight (x) . | . . 1 1 1 2 2 2 2 . . . . . . Largest Inventory Capacity 25 | 5 20 20 20 20 20 20 25 25 25 8 8 8 8 8 Average Capacity 16 | 5 19 20 20 20 20 20 24 25 11 8 8 8 8 8 Most Carried 25 | . 6 9 20 20 20 20 25 25 25 8 8 8 8 8 Average Carried 13 | . 2 6 18 19 20 19 24 24 11 7 7 8 8 7 Final Capacity 25 | 5 20 20 20 20 20 20 25 25 8 8 8 8 8 8 Final Carried 25 | . 6 9 20 20 20 20 25 24 8 8 8 8 8 7 Class Distribution -------------------- 50% | Trapper-Mutant 22% | Mutant 17% | Trapper-Sprinter 6% | Scavenger-Mutant Dominant Class ---------------- Mutant | -10/Materials Mutant | -10/Mines Scavenger-Mutant | -9/Materials Trapper-Mutant | -9/Mines Trapper-Mutant | -9/Exiles Trapper-Mutant | -8/Mines Trapper-Mutant | -8/Materials Trapper-Mutant | -8/Garrison Trapper-Mutant | -7/Factory Trapper-Scout | -7/Waste Trapper-Sprinter | -7/Factory Trapper-Sprinter | -7/Lower Caves Trapper-Sprinter | -7/Lower Caves Trapper-Sprinter | -7/Zion Resources | -11 -10 -10 -9 -9 -9 -8 -8 -8 -7 -7 -7 -7 -7 -7 ----------- Run | Jun Mat Min Mat Min Exi Min Mat Gar Fac Was Fac Low Low Zio Matter Collected 3693 | 201 127 45 444 118 . 286 104 196 205 . 1333 322 291 21 Remotely . | . . . . . . . . . . . . . . . Salvage Created 3785 | . 225 60 807 39 . 397 105 343 151 . 1352 234 72 . Parts 235 | . 19 5 53 7 . 31 8 19 9 . 67 10 7 . Haulers Intercepted 6 | . . . 2 . . . . . 1 . 3 . . . Recyclers Shooed 3 | . . . 2 . . . . . . . 1 . . . Parts Field Recycled . | . . . . . . . . . . . . . . . Retrieved Matter . | . . . . . . . . . . . . . . . Parts Self-Destructed 7 | . . . . . . . . . . . . 5 2 . Prevented 2 | . . . . . . . . . . . . 2 . . Kills | -11 -10 -10 -9 -9 -9 -8 -8 -8 -7 -7 -7 -7 -7 -7 ------- Run | Jun Mat Min Mat Min Exi Min Mat Gar Fac Was Fac Low Low Zio Combat Hostiles Destroyed 69 | . 6 3 14 3 . 9 2 16 . . 8 4 4 . Melee 5 | . . . . . . . . . . . 4 . 1 . Guns 34 | . 6 3 14 3 . 4 2 2 . . . . . . AOE 30 | . . . . . . 5 . 14 . . 4 4 3 . Classes Destroyed 15 | . 4 . 5 . . 4 . . . . 1 1 . . Worker 11 | . . . 2 . . . . . . . 9 . . . Builder 3 | . . . . . . . . . . . 3 . . . Tunneler 3 | . . . . . . 1 . . . . 2 . . . Hauler 6 | . . . 2 . . . . . 1 . 3 . . . Recycler 9 | . . . . . . 2 . . 1 . 6 . . . Mechanic 3 | . . . 1 . . . . . . . 2 . . . Operator 5 | . 1 . 2 . . . . . . . 2 . . . Watcher 4 | . 1 . . . . . . . 2 . 1 . . . Swarmer 31 | . 3 2 . 3 . 4 . 7 . . 4 4 4 . Grunt 26 | . 3 1 10 . . 2 . 8 . . 2 . . . Brawler 1 | . . . 1 . . . . . . . . . . . Duelist 2 | . . . . . . 1 . 1 . . . . . . Sentry 7 | . . . 3 . . . 2 . . . 2 . . . Hunter 2 | . . . . . . 2 . . . . . . . . Decomposer 2 | . . . . . . . . . . . . 1 1 . Samaritan 3 | . . . . . . . . . . . . 3 . . Best Kill Streak 6 | . 4 2 5 2 . 4 1 6 1 . 5 4 4 . Combat Bots Only 6 | . 2 2 5 2 . 4 1 6 . . 4 4 4 . Max Kills in Single Turn 3 | . 1 1 2 2 . 2 1 3 1 . 3 2 3 . Gunslinging 1 | . . . 1 . . . . . . . . . . . Exploded 3 | . . . . . . 2 . 3 . . 2 2 3 . Melee 1 | . . . . . . . . . . . 1 . 1 . Uniques/NPCs Destroyed . | . . . . . . . . . . . . . . . Combat | -11 -10 -10 -9 -9 -9 -8 -8 -8 -7 -7 -7 -7 -7 -7 -------- Run | Jun Mat Min Mat Min Exi Min Mat Gar Fac Was Fac Low Low Zio Damage Taken 4054 | . 144 73 493 417 . 355 87 751 . . 1063 61 61 549 Core 1022 | . 35 28 34 17 . 73 15 95 . . 440 15 28 242 Absorbed by Shields . | . . . . . . . . . . . . . . . Redirected to Shielding 84 | . . . . . . . . . . . 18 9 9 48 Regen/Repaired (Parts) 301 | . . . 38 . . . 77 . . . 186 . . . Core Remaining (%) 80 | 100 . 74 . . . 69 . 80 . . . . . . Volleys Fired 149 | . 16 5 45 12 . 25 4 34 . . 2 4 2 . Largest 2 | . 2 2 2 2 . 2 2 2 . . 1 1 1 . Hottest 91 | . 70 70 70 46 . 46 51 91 . . 33 39 39 . Shots Fired 268 | . 32 10 90 24 . 46 8 50 . . 2 4 2 . Gun 231 | . 32 10 90 24 . 43 8 24 . . . . . . Cannon 10 | . . . . . . . . 10 . . . . . . Launcher 27 | . . . . . . 3 . 16 . . 2 4 2 . Special . | . . . . . . . . . . . . . . . Kinetic 201 | . 16 5 81 24 . 43 8 24 . . . . . . Thermal 30 | . 16 5 9 . . . . . . . . . . . Explosive 27 | . . . . . . 3 . 16 . . 2 4 2 . Electromagnetic 10 | . . . . . . . . 10 . . . . . . Robot Hit Streak 12 | . 11 3 12 5 . 8 3 7 . . . . . . Robot Miss Streak 3 | . 2 3 2 3 . 2 1 1 . . . . . . Penetration Max . | . . . . . . . . . . . . . . . Secondary Targets 6 | . . . 4 1 . 1 . . . . . . . . Max Gunslinging Chain 1 | . . . 1 1 . 1 . . . . . . . . Shots Hit Robots 242 | . 22 4 63 15 . 30 5 24 5 . 64 6 3 1 Core Hits 160 | . 13 3 30 3 . 19 4 35 4 . 37 8 4 . Critical Kills 1 | . . . 1 . . . . . . . . . . . Critical Parts Destroyed . | . . . . . . . . . . . . . . . Critical Strikes 6 | . 1 1 1 . . . . . . . 3 . . . Burn 2 | . 1 1 . . . . . . . . . . . . Destroy 1 | . . . 1 . . . . . . . . . . . Sever 2 | . . . . . . . . . . . 2 . . . Impale 1 | . . . . . . . . . . . 1 . . . Melee Attacks 134 | . . . . . . . . . 9 . 108 6 5 6 Impact . | . . . . . . . . . . . . . . . Slashing 109 | . . . . . . . . . 9 . 83 6 5 6 Piercing 22 | . . . . . . . . . . . 22 . . . Sneak Attacks 38 | . . . . . . . . . 2 . 29 6 1 . Combat Hostiles . | . . . . . . . . . . . . . . . Follow-up Attacks . | . . . . . . . . . . . . . . . Damage Inflicted 9382 | . 281 52 952 268 . 670 87 1378 262 . 4095 808 498 31 Guns 2271 | . 281 52 952 268 . 406 87 225 . . . . . . Cannons 50 | . . . . . . . . 50 . . . . . . Explosions 2500 | . . . . . . 264 . 1103 . . 445 338 350 . Melee 4561 | . . . . . . . . . 262 . 3650 470 148 31 Ramming . | . . . . . . . . . . . . . . . Kinetic 2071 | . 155 28 902 268 . 406 87 225 . . . . . . Thermal 200 | . 126 24 50 . . . . . . . . . . . Explosive 2500 | . . . . . . 264 . 1103 . . 445 338 350 . Electromagnetic 50 | . . . . . . . . 50 . . . . . . Impact . | . . . . . . . . . . . . . . . Slashing 3835 | . . . . . . . . . 262 . 2924 470 148 31 Piercing 726 | . . . . . . . . . . . 726 . . . Highest Corruption 7 | . . . . . . . . . . 7 7 . . . Average Corruption 3 | . . . . . . . . . . 7 3 . . . Corruption Purged 9 | . . . . . . . . . . . 9 . . . Corruption Blocked . | . . . . . . . . . . . . . . . Effects 18 | . . . . . . . . . . 1 17 . . . Message Errors 3 | . . . . . . . . . . . 3 . . . Matter Fused 2 | . . . . . . . . . . . 2 . . . Heat Flow Errors 3 | . . . . . . . . . . . 3 . . . Energy Discharges 3 | . . . . . . . . . . . 3 . . . Parts Rejected 3 | . . . . . . . . . . 1 2 . . . Parts Fused 1 | . . . . . . . . . . . 1 . . . Data Loss (minor) 2 | . . . . . . . . . . . 2 . . . Data Loss (major) 1 | . . . . . . . . . . . 1 . . . Overload Shots . | . . . . . . . . . . . . . . . Overflow Damage 860 | . . . . . . 12 . 9 . . 609 96 134 . Projectiles . | . . . . . . . . . . . . . . . Explosions 83 | . . . . . . 12 . 9 . . 5 . 57 . Melee 777 | . . . . . . . . . . . 604 96 77 . Knockbacks . | . . . . . . . . . . . . . . . Impact . | . . . . . . . . . . . . . . . Kinetic . | . . . . . . . . . . . . . . . Secondary . | . . . . . . . . . . . . . . . Self-Inflicted Damage 166 | . . . . . . 13 . 153 . . . . . . Shots 7 | . . . . . . 2 . 5 . . . . . . Rammed . | . . . . . . . . . . . . . . . Targets Rammed . | . . . . . . . . . . . . . . . Kicked . | . . . . . . . . . . . . . . . Crushed . | . . . . . . . . . . . . . . . Highest Temperature 335 | . 69 36 335 . . . 7 67 . . 249 . . 72 Average Temperature 46 | . 29 16 59 . . . 4 22 . . 85 . . 30 Received Heat Transfer 936 | . 51 . 198 . . 36 27 270 . . 264 . . 90 Siege Activations . | . . . . . . . . . . . . . . . Robots Corrupted . | . . . . . . . . . . . . . . . Combat Hostiles . | . . . . . . . . . . . . . . . Parts Fried . | . . . . . . . . . . . . . . . Impact Corruptions . | . . . . . . . . . . . . . . . Robots Melted . | . . . . . . . . . . . . . . . Combat Hostiles . | . . . . . . . . . . . . . . . Parts Melted 1 | . . 1 . . . . . . . . . . . . Heat Transferred 740 | . 444 148 148 . . . . . . . . . . . Parts Sabotaged . | . . . . . . . . . . . . . . . Parts Stolen . | . . . . . . . . . . . . . . . Parts Stripped . | . . . . . . . . . . . . . . . Power Chain Reactions . | . . . . . . . . . . . . . . . Missiles Intercepted . | . . . . . . . . . . . . . . . Alert | -11 -10 -10 -9 -9 -9 -8 -8 -8 -7 -7 -7 -7 -7 -7 ------- Run | Jun Mat Min Mat Min Exi Min Mat Gar Fac Was Fac Low Low Zio Peak Influence 566 | . 128 112 377 87 . 194 156 566 370 189 383 . . . Initial 296 | . . 47 21 87 . . 11 101 296 129 118 . . . Average 142 | . 50 38 263 33 . 82 84 408 325 162 113 . . . Maximum Alert Level 2 | . . . 1 . . . . 2 1 . 1 . . . Low Security (%) 70 | 100 100 100 14 100 . 100 100 9 . 100 80 . . . Level 1 23 | . . . 85 . . . . 27 100 . 19 . . . Level 2 6 | . . . . . . . . 63 . . . . . . Level 3 . | . . . . . . . . . . . . . . . Level 4 . | . . . . . . . . . . . . . . . Level 5 . | . . . . . . . . . . . . . . . High Security . | . . . . . . . . . . . . . . . Max Security . | . . . . . . . . . . . . . . . Squads Dispatched 14 | . 1 . 3 1 . . . . 2 . 7 . . . Investigation 8 | . . . 1 1 . . . . 1 . 5 . . . Extermination 2 | . . . . . . . . . . . 2 . . . Reinforcement 4 | . 1 . 2 . . . . . 1 . . . . . Assault . | . . . . . . . . . . . . . . . Garrison . | . . . . . . . . . . . . . . . Intercept . | . . . . . . . . . . . . . . . Searches Triggered . | . . . . . . . . . . . . . . . Construction Impeded . | . . . . . . . . . . . . . . . Haulers Reinforced 1 | . . . . . . . . . 1 . . . . . Active Scanning Responses . | . . . . . . . . . . . . . . . Cargo Convoy Interrupts . | . . . . . . . . . . . . . . . Stealth | -11 -10 -10 -9 -9 -9 -8 -8 -8 -7 -7 -7 -7 -7 -7 --------- Run | Jun Mat Min Mat Min Exi Min Mat Gar Fac Was Fac Low Low Zio Distress Signals 9 | . 1 . 3 . . . . . . . 5 . . . Communications Jammed . | . . . . . . . . . . . . . . . Distress Signals . | . . . . . . . . . . . . . . . Times Spotted 211 | . 12 5 34 6 . 9 3 11 3 6 66 2 3 51 Peak Tracking Total 38 | . 3 3 6 3 . 4 2 7 1 6 12 2 4 38 Tactical Retreats 31 | . 1 1 1 . . . 1 . . . 22 . 1 4 Traps | -11 -10 -10 -9 -9 -9 -8 -8 -8 -7 -7 -7 -7 -7 -7 ------- Run | Jun Mat Min Mat Min Exi Min Mat Gar Fac Was Fac Low Low Zio Traps Triggered 9 | . . . . . . . . 3 1 . 5 . . . Indirectly . | . . . . . . . . . . . . . . . Trap Hack Attempts 13 | . . . . . . . . . . . 13 . . . Triggered . | . . . . . . . . . . . . . . . Disarmed . | . . . . . . . . . . . . . . . Reprogrammed 12 | . . . 10 . . . . . . . 2 . . . Reused . | . . . . . . . . . . . . . . . Traps Extracted 12 | . . . 10 . . . . . . . 2 . . . Installed . | . . . . . . . . . . . . . . . Triggered 2 | . . . . . . . . . . . . 2 . . Most Traps Carried 15 | . . . 10 15 15 15 15 15 15 12 14 14 14 14 Machines | -11 -10 -10 -9 -9 -9 -8 -8 -8 -7 -7 -7 -7 -7 -7 ---------- Run | Jun Mat Min Mat Min Exi Min Mat Gar Fac Was Fac Low Low Zio Machines Disabled 7 | . . . . . . . 1 3 . . 3 . . . Max in Single Turn 1 | . . . . . . . 1 1 . . 1 . . . Garrison Access 3 | . . . . . . . . . . . 3 . . . Garrison Relay 1 | . . . . . . . . 1 . . . . . . Machines Repaired . | . . . . . . . . . . . . . . . Machines Sabotaged . | . . . . . . . . . . . . . . . Overloaded Fab Kills . | . . . . . . . . . . . . . . . Hacking | -11 -10 -10 -9 -9 -9 -8 -8 -8 -7 -7 -7 -7 -7 -7 --------- Run | Jun Mat Min Mat Min Exi Min Mat Gar Fac Was Fac Low Low Zio Machines Accessed 51 | . 4 1 4 2 . . 3 2 5 . 29 1 . . Terminals 28 | . 4 . 3 1 . . 1 2 3 . 14 . . . Fabricators 4 | . . . . . . . . . . . 4 . . . Repair Stations 7 | . . . 1 . . . 1 . . . 5 . . . Recycling Units 2 | . . . . . . . . . . . 2 . . . Scanalyzers 3 | . . . . . . . . . 2 . 1 . . . Garrison Access 4 | . . . . . . . 1 . . . 3 . . . Total Hacks 151 | . 11 1 14 4 . . 10 3 13 . 94 1 . . Successful 86 | . 3 1 10 3 . . 5 1 5 . 57 1 . . Failed 64 | . 8 . 4 1 . . 5 2 8 . 36 . . . Catastrophic 13 | . 3 . 3 . . . 2 1 . . 4 . . . Database Lockouts 1 | . . . . . . . . . . . 1 . . . Manual 80 | . 9 . 10 3 . . 3 2 8 . 45 . . . Terminals 96 | . 11 . 12 3 . . 3 3 8 . 56 . . . Fabricators 14 | . . . . . . . . . . . 14 . . . Repair Stations 19 | . . . 2 . . . 5 . . . 12 . . . Recycling Units 5 | . . . . . . . . . . . 5 . . . Scanalyzers 9 | . . . . . . . . . 5 . 4 . . . Garrison Access 5 | . . . . . . . 2 . . . 3 . . . Terminal Hacks 34 | . 1 1 8 3 . . . 1 . . 19 1 . . Part Schematic 3 | . . . . 1 . . . . . . 2 . . . Robot Analysis 1 | . . . . 1 . . . . . . . . . . Prototype ID Bank 3 | . . . 3 . . . . . . . . . . . Open Door 3 | . . 1 . 1 . . . . . . . 1 . . Branch Access Points 2 | . . . 1 . . . . . . . 1 . . . Machine Index 1 | . . . . . . . . . . . 1 . . . Unreport Threat 5 | . . . . . . . . . . . 5 . . . Locate Traps 5 | . 1 . 1 . . . . . . . 3 . . . Reprogram Traps 3 | . . . 3 . . . . . . . . . . . Recall Investigation 2 | . . . . . . . . . . . 2 . . . Recall Extermination 1 | . . . . . . . . . . . 1 . . . Recall Reinforcements 1 | . . . . . . . . . . . 1 . . . Hauler Manifests 1 | . . . . . . . . . . . 1 . . . Registered Components 1 | . . . . . . . . . . . 1 . . . Registered Prototypes 1 | . . . . . . . . . . . 1 . . . Garrison Registry 1 | . . . . . . . . 1 . . . . . . Fabricator Hacks 7 | . . . . . . . . . . . 7 . . . Load Schematic 5 | . . . . . . . . . . . 5 . . . Build 2 | . . . . . . . . . . . 2 . . . Repair Station Hacks 17 | . . . 2 . . . 4 . . . 11 . . . Scan Component 9 | . . . 1 . . . 2 . . . 6 . . . Repair 8 | . . . 1 . . . 2 . . . 5 . . . Recycling Unit Hacks 2 | . . . . . . . . . . . 2 . . . Process 1 | . . . . . . . . . . . 1 . . . Retrieve Components 1 | . . . . . . . . . . . 1 . . . Scanalyzer 4 | . . . . . . . . . 2 . 2 . . . Insert Component 2 | . . . . . . . . . 1 . 1 . . . Analyze 2 | . . . . . . . . . 1 . 1 . . . Garrison Access Hacks 4 | . . . . . . . 1 . . . 3 . . . Unlock Access 1 | . . . . . . . 1 . . . . . . . Seal Access 3 | . . . . . . . . . . . 3 . . . Unauthorized Hacks 18 | . 2 . . . . . . . 3 . 13 . . . Terminals 15 | . 2 . . . . . . . 3 . 10 . . . Track 1 | . . . . . . . . . . . 1 . . . Assimilate 5 | . 1 . . . . . . . . . 4 . . . Botnet 5 | . . . . . . . . . 2 . 3 . . . Operators 4 | . 1 . . . . . . . 1 . 2 . . . Fabricators 3 | . . . . . . . . . . . 3 . . . Recompile 3 | . . . . . . . . . . . 3 . . . Repair Stations . | . . . . . . . . . . . . . . . Recycling Units . | . . . . . . . . . . . . . . . Scanalyzers . | . . . . . . . . . . . . . . . Garrison Access . | . . . . . . . . . . . . . . . Data Cores Recovered . | . . . . . . . . . . . . . . . Used . | . . . . . . . . . . . . . . . Hacking Detections 38 | . 4 . 4 1 . . 3 2 5 . 19 . . . Full Trace Events 3 | . . . . . . . . . 1 . 2 . . . Feedback Events . | . . . . . . . . . . . . . . . Feedback Blocked . | . . . . . . . . . . . . . . . Robot Schematics Acquired . | . . . . . . . . . . . . . . . Robots Built . | . . . . . . . . . . . . . . . Authchips . | . . . . . . . . . . . . . . . Time . | . . . . . . . . . . . . . . . Total Robot Build Rating . | . . . . . . . . . . . . . . . Part Schematics Acquired 4 | . . . . 1 . . . . . . 3 . . . Parts Built 4 | . . . . . . . . . . . 4 . . . Authchips 1 | . . . . . . . . . . . 1 . . . Time 55 | . . . . . . . . . . . 55 . . . Total Part Build Rating 10 | . . . . . . . . . . . 10 . . . Parts Repaired 7 | . . . 1 . . . 1 . . . 5 . . . Time 375 | . . . 26 . . . 76 . . . 273 . . . Parts Recycled . | . . . . . . . . . . . . . . . Recycled Matter 42 | . . . . . . . . . . . 42 . . . Retrieved Matter . | . . . . . . . . . . . . . . . Retrieved Components 10 | . . . . . . . . . . . 10 . . . Parts Scanalyzed 1 | . . . . . . . . . 1 . . . . . Part Schematics Acquired 1 | . . . . . . . . . . . 1 . . . Parts Damaged . | . . . . . . . . . . . . . . . Bothacking | -11 -10 -10 -9 -9 -9 -8 -8 -8 -7 -7 -7 -7 -7 -7 ------------ Run | Jun Mat Min Mat Min Exi Min Mat Gar Fac Was Fac Low Low Zio Used RIF Installer 2 | . . . . . . . . 2 . . . . . . Structural Interface 1 | . . . . . . . . 1 . . . . . . Robots Hacked . | . . . . . . . . . . . . . . . Non-combat . | . . . . . . . . . . . . . . . Combat . | . . . . . . . . . . . . . . . Robot Hacks Applied . | . . . . . . . . . . . . . . . Relay Couplers Released 4 | . . . . . . . . 4 . . . . . . Machine Destruction 4 | . . . . . . . . 4 . . . . . . Fabnet Peak Effective % . | . . . . . . . . . . . . . . . Robots Rewired . | . . . . . . . . . . . . . . . Allies Hacked . | . . . . . . . . . . . . . . . Hacks Repelled . | . . . . . . . . . . . . . . . Allies | -11 -10 -10 -9 -9 -9 -8 -8 -8 -7 -7 -7 -7 -7 -7 -------- Run | Jun Mat Min Mat Min Exi Min Mat Gar Fac Was Fac Low Low Zio Total Allies 7 | . . 3 . . . . . . . 1 3 . . . Largest Group 3 | . . 3 2 . . . . . . 1 1 . . . Highest-Rated Group 40 | . . 40 32 . . . . . . 31 26 . . . Highest-Rated Ally 31 | . . 16 16 . . . . . . 31 26 . . . Total Orders . | . . . . . . . . . . . . . . . Ally Attacks 47 | . . 6 29 . . . . . . 12 . . . . Total Damage 619 | . . 74 336 . . . . . . 209 . . . . Kills 9 | . . 1 8 . . . . . . . . . . . Allies Corrupted 1 | . . . . . . . . . . . 1 . . . Allies Melted . | . . . . . . . . . . . . . . . Intel | -11 -10 -10 -9 -9 -9 -8 -8 -8 -7 -7 -7 -7 -7 -7 ------- Run | Jun Mat Min Mat Min Exi Min Mat Gar Fac Was Fac Low Low Zio Robot Analysis Total 1 | . . . . 1 . . . . . . . . . . Derelict Logs Recovered 5 | . . 1 . 2 . . . . . . . 1 1 . Drone Launches . | . . . . . . . . . . . . . . . Drone Recoveries . | . . . . . . . . . . . . . . . Exploration | -11 -10 -10 -9 -9 -9 -8 -8 -8 -7 -7 -7 -7 -7 -7 ------------- Run | Jun Mat Min Mat Min Exi Min Mat Gar Fac Was Fac Low Low Zio Turns Passed 9612 | 67 775 880 1230 1434 455 685 274 895 327 42 2026 194 179 149 Spaces Moved 9025 | 39 260 334 406 551 143 412 124 565 625 149 3868 560 570 419 Core 6 | 3 . . . . . 2 . . . . 1 . . . Treads 1760 | 36 260 334 406 551 143 30 . . . . . . . . Legs . | . . . . . . . . . . . . . . . Wheels 1120 | . . . . . . 380 124 565 51 . . . . . Hover . | . . . . . . . . . . . . . . . Flight 6139 | . . . . . . . . . 574 149 3867 560 570 419 Fastest Speed 14 | 50 160 240 240 240 320 120 108 130 26 26 14 26 26 20 Average Speed 86 | 151 233 240 240 251 320 138 130 134 34 26 35 27 26 29 Slowest Speed 950 | 160 240 240 240 320 320 950 145 145 130 26 250 91 91 162 Overloaded Moves 19 | . . . . . . . . . . . 4 . . 15 Propulsion Burnouts . | . . . . . . . . . . . . . . . Robots Hopped 30 | . . . . . . . . . . . 29 . . 1 Cave-ins Triggered . | . . . . . . . . . . . . . . . Exploration Rate (%) 57 | 3 38 74 39 97 53 87 14 51 18 96 81 75 63 66 Regions Visited 14 Branch Regions 7 Pre-discovered Areas 2 | . . . . 2 . . . . . . . . . . Known Exits Taken 5 | . . . 1 . . . 1 . . . 1 1 1 . Unknown Exits Taken 6 | 1 1 1 . 1 1 1 . . . . . . . . Scrap Searched 5 | . . . . 1 . 2 . . . . . . 1 1 Spaces Dug 57 | . . . . . . 9 . 8 3 . 34 . 2 1 Terrain Destroyed 172 | . . . . . . 22 . 46 3 . 35 34 31 1 Melee 32 | . . . . . . . . . 3 . 26 . 2 1 Projectile 4 | . . . . . . . . 4 . . . . . . AOE 136 | . . . . . . 22 . 42 . . 9 34 29 . Terrain Rammed . | . . . . . . . . . . . . . . . Walls Destroyed . | . . . . . . . . . . . . . . . Machines Disabled . | . . . . . . . . . . . . . . . Actions | -11 -10 -10 -9 -9 -9 -8 -8 -8 -7 -7 -7 -7 -7 -7 --------- Run | Jun Mat Min Mat Min Exi Min Mat Gar Fac Was Fac Low Low Zio Total 10303 | 45 396 402 579 581 142 476 227 644 722 151 4332 585 587 434 Wait 724 | . 113 56 69 4 . 25 80 1 56 . 299 12 9 . Move 8954 | 38 259 333 405 550 142 411 124 564 625 148 3810 559 569 417 Hop 29 | . . . . . . . . . . . 28 . . 1 Pick Up 71 | . 6 1 21 6 . 1 8 4 6 1 15 . . 2 Fast Attach 58 | 6 2 2 7 1 . 4 4 1 12 1 17 1 . . Attach 15 | . . . 1 . . 3 1 1 2 . 5 . . 2 Detach 8 | . . 1 1 . . 1 . . 2 . 1 . . 2 Swap 53 | . . 3 11 2 . 5 2 12 . . 14 2 2 . Drop 71 | 1 . 1 19 6 . 1 4 3 10 1 20 1 . 4 Fire 149 | . 16 5 45 12 . 25 4 34 . . 2 4 2 . Melee 134 | . . . . . . . . . 9 . 108 6 5 6 Ram . | . . . . . . . . . . . . . . . Kick . | . . . . . . . . . . . . . . . Crush . | . . . . . . . . . . . . . . . Escape Stasis 24 | . . . . . . . . 24 . . . . . . Rewire . | . . . . . . . . . . . . . . . Trap 13 | . . . . . . . . . . . 13 . . . Miscellaneous . | . . . . . . . . . . . . . . . Route ------- -11/Junkyard -10/Materials -10/Mines -9/Materials (discovered 2 exits: *Mat / *Min) -9/Mines (discovered 4 exits: *Mat x2 / [*Exi] / *Zio) -9/Exiles -8/Mines (discovered 2 exits: *Mat x2) -8/Materials (discovered 2 exits: Sto / Gar) -8/Garrison (discovered 3 exits: *Fac x3) -7/Factory -7/Waste -7/Factory (discovered 5 exits: *Fac x3 / *Low x2) -7/Lower Caves -7/Lower Caves -7/Zion (discovered 1 exit: [*Pro]) History --------- Turn | Location | Event 41 | -11/Junkyard | Discovered new exit (range 15) 68 | -11/Junkyard | Entered Materials 315 | -10/Materials | Build established: Mutant 441 | -10/Materials | Discovered new exit (range 16) 843 | -10/Materials | Entered Mines 1087 | -10/Mines | Found the Drone Emporium 1101 | -10/Mines | Found Prototype Device 1101 | -10/Mines | Identified Thief Drone Bay 1581 | -10/Mines | Assisted by bots powering up and referring to "LRC-V3" 1655 | -10/Mines | Found a damaged Exp. Sensor Array with a note attached 1661 | -10/Mines | Found Prototype Device 1706 | -10/Mines | Discovered new exit (range 4) 1720 | -10/Mines | Identified Exp. Sensor Array 1723 | -10/Mines | Entered Materials 1723 | -9/Materials | Accompanied by 2 allies 1723 | -9/Materials | Evolved 2 slots: Utility x2 1786 | -9/Materials | Repaired Lgt. Treads 2401 | -9/Materials | Discovered new exit (range 16) 2427 | -9/Materials | Build established: Scavenger-Mutant 2613 | -9/Materials | Identified exit to Mines 2953 | -9/Materials | Entered Mines 2959 | -9/Mines | Met a Derelict shopkeep closing up shop 3024 | -9/Mines | Learned location of Recycling (-8) 3080 | -9/Mines | Build established: Trapper-Mutant 3180 | -9/Mines | Found a hidden stash of uninstalled traps 3181 | -9/Mines | Assembled infested the area 3186 | -9/Mines | Assisted by a Guerilla fighting off Assembled 3242 | -9/Mines | Received a Rocket Launcher from a helpful Derelict 3431 | -9/Mines | A Derelict revealed a hidden shortcut to a safe place 3433 | -9/Mines | Learned Materials garrison access intel 3761 | -9/Mines | Discovered new exit (range 7) 4061 | -9/Mines | Discovered new exit (range 13) 4308 | -9/Mines | Learned location of Storage (-8) 4375 | -9/Mines | Deemed a non-threat by the Exiles lab entrance 4375 | -9/Mines | Discovered new exit (range 5) 4387 | -9/Mines | Entered Exiles 4467 | -9/Exiles | Met 8R-AWN 4519 | -9/Exiles | Met EX-HEX 4672 | -9/Exiles | Met EX-DEC 4810 | -9/Exiles | Discovered new exit (range 10) 4842 | -9/Exiles | Entered Mines 4994 | -8/Mines | Discovered new exit (range 15) 5007 | -8/Mines | Lost 3 parts (1n2w) 5511 | -8/Mines | Discovered new exit (range 14) 5527 | -8/Mines | Entered Materials 5527 | -8/Materials | Evolved 2 slots: Propulsion x2 5528 | -8/Materials | Identified exit to Storage 5529 | -8/Materials | Loaded intel: 1 garrison access location 5662 | -8/Materials | Repaired Hrd. Light Armor Plating 5801 | -8/Materials | Identified exit to Garrison 5801 | -8/Materials | Entered Garrison 5856 | -8/Garrison | Triggered checkpoint 5885 | -8/Garrison | Garrison Relay disabled 5962 | -8/Garrison | Discovered new exit (range 72) 5962 | -8/Garrison | Discovered new exit (range 46) 5962 | -8/Garrison | Discovered new exit (range 65) 6084 | -8/Garrison | Triggered checkpoint 6114 | -8/Garrison | Triggered checkpoint 6182 | -8/Garrison | Lost 4 parts (1p1n1u1w) 6214 | -8/Garrison | Triggered checkpoint 6302 | -8/Garrison | Installed Relay Interface Framework 6405 | -8/Garrison | Triggered checkpoint 6538 | -8/Garrison | Expanded RIF knowledge: Structural Interface 6696 | -8/Garrison | Entered Factory 6696 | -7/Factory | Evolved 2 slots: Utility x2 6980 | -7/Factory | Discovered new exit (range 8) 6981 | -7/Factory | Identified exit to Lower Caves 7023 | -7/Factory | Sucked down chute 7023 | -7/Factory | Entered Waste 7024 | -7/Waste | Met a frightened Derelict 7029 | -7/Waste | Spotted C-40 Crusher 7033 | -7/Waste | Spotted C-40 Crusher 7038 | -7/Waste | EMP discharged 7038 | -7/Waste | Spotted C-40 Crusher 7048 | -7/Waste | Spotted C-40 Crusher 7049 | -7/Waste | Spotted C-40 Crusher 7052 | -7/Waste | Spotted C-40 Crusher 7063 | -7/Waste | Discovered new exit (range 10) 7065 | -7/Waste | Identified exit to Factory 7065 | -7/Waste | Entered Factory 7242 | -7/Factory | Central database locked down 7313 | -7/Factory | Fabricated Trap Extractor? 7326 | -7/Factory | Repaired Broken Fusion Compressor? 7416 | -7/Factory | Repaired Exp. Sensor Array? 7432 | -7/Factory | Lost 3 parts (1p1u1w) 7457 | -7/Factory | Core integrity fell below 50% 7560 | -7/Factory | Discovered new exit (range 5) 7600 | -7/Factory | Build established: Trapper-Sprinter 7898 | -7/Factory | Discovered new exit (range 8) 7949 | -7/Factory | Identified exit to Factory 8033 | -7/Factory | Repaired Broken Cld. VTOL Module 8234 | -7/Factory | Repaired Cld. VTOL Module 8349 | -7/Factory | Repaired Cld. VTOL Module 8525 | -7/Factory | Fabricated Imp. Propulsion Shielding? 8953 | -7/Factory | Discovered exit to Factory (range 15) 9091 | -7/Factory | Entered Lower Caves 9268 | -7/Lower Caves | Learned Factory terminal intel 9277 | -7/Lower Caves | Discovered new exit (range 8) 9279 | -7/Lower Caves | Identified exit to Lower Caves 9285 | -7/Lower Caves | Entered another Lower Caves area 9322 | -7/Lower Caves | Encountered a Warlord checkpoint 9324 | -7/Lower Caves | Learned Factory stockpile data 9404 | -7/Lower Caves | Discovered new exit (range 16) 9460 | -7/Lower Caves | Identified exit to Zion 9464 | -7/Lower Caves | Entered Zion 9480 | -7/Zion | Discovered new exit (range 12) 9483 | -7/Zion | Given the Hacking Drone Bay 9491 | -7/Zion | Found Prototype Device 9513 | -7/Zion | RIF detected upon attempting to enter Zion 9513 | -7/Zion | Attacked by Zionites 9513 | -7/Zion | Spotted S7-RG3(B) 9513 | -7/Zion | Spotted XH-4O6(B) 9576 | -7/Zion | Core integrity fell below 20% 9613 | -7/Zion | Destroyed by KP-D39(z) with Makeshift Spear Last Messages --------------- 09547_ NI-XB3(z) pulls a Mak. Laser out of the Twisted Machinery. 09560_ XB-500(z) heat spikes uncontrollably. 09563_ AP-22M(z) emerges from the Twisted Machinery. 09564_ XB-500(z) heat damages core (-3). 09564_ XB-500(z) pulls a Mak. Laser out of the Twisted Machinery. 09564_ XB-500(z) overheating. 09565_ AP-22M(z) pulls a Mak. Spear out of the Twisted Machinery. 09565_ X6-VPY(z) pulls a Mak. Hammer out of the Twisted Machinery. 09569_ XB-500(z) pulls a Mak. Shrapnel Gun out of the Twisted Machinery. 09569_ XB-500(z) overheating. 09570_ XB-500(z) heat short circuits Mak. Shrapnel Gun. 09575_ JP-ZIN(z) emerges from the Twisted Machinery. 09576_ OR-NOD(z) pulls a Mak. Laser out of the Twisted Machinery. 09577_ MA-YU8(z) pulls a Mak. Axe out of the Twisted Machinery. 09583_ Critical hit (Burn: +37). 09586_ 33-XV3(z) destroyed. 09591_ KP-D39(z) pulls a Mak. Spear out of the Twisted Machinery. 09591_ Knocked back. 09593_ 7M-IUS(z) pulls a Mak. Axe out of the Twisted Machinery. 09613_ Critical hit (Impale). Map ----- +----------------------------------------------------+ | ???????????????????????????????????????????? | | ???????????????????????????????????????????? | | ???????????????????????????????????????????? | | ???????????????????????????????????????????? | | ???????????????????????????????????????????? | | ???????????????????????????????????????????? | | ???????????????????????????????????????????? | | ???????????????????????????????????????????? | | ???????????????????????????????????????????? | | ???????????????????????????????????????????? | | ???????????????????????????????????????????? | | ???????????????????????????????????????????? | | ???????????????????????????"#?"????????????? | | ???????????????????????????""#"#"#?????????? | | ??????????????????????????" " """"##???????? | | ?????????????????????????# # z ""????????? | | ?????????????????????????"" "????????? | | ?????????????????????????#"" ""????????? | | ??????????????????????###"" "#????????? | | ??????????????????????#""#"" "##???????? | | ??????????????????????#""""" "#"????????? | | ??????????????????????" X"" """####?????? | | ??????????????????????# "" ""#"#"#?##??? | | ??????????????????##### """ """"""##"#?## | | ??????????????????" " """""###" | | ????????????z?????"@z"zzM l% """#"" | | ??????????????????###z z ""zzzz""" """" | | ??????????????????#"""""""""""#zz" """" | | ??????????????????###""""""""##"" """#"" | | ????????????????????###########z" """"""" | | ??????????????????????????????#" """""""" | | ??????????????????????????????#"" "" "" | | ?????????????????????????????##""" | | ?????????????????????????????#"""" m | | ?????????????????????????????#"" | | ????????????????????????????##""" | | ???????????????????????????#""""" z | | ???????????????????????????#"" | | ???????????????????????????##" | | ????????????????????????????"""" | | ????????????????????????????"""" | | ????????????????????????????##"" % | | ?????????????????????????????##" "" | | ?????????????????????????????""" """""" | | ?????????????????????????????#"" """"""" | | ?????????????????????????????""" """" ""*% | | ?????????????????????????????"" """" "" | | ?????????????????????????????#"""""" "" | | ?????????????????????????????#"#""" """" | | ???????????????????????????????#" " | +----------------------------------------------------+ Best States ------------- Heat Dissipation 58 Energy Generation 25 Energy Capacity 280 Matter Stores 300 Matter Capacity 300 Sight Range 16 Robot Scan Range 20 Terrain Scan Density 10 Armor Coverage 300 Propulsion Shielding 66 Evasion (%) 64 Recoil Reduction 2 Offensive Hacking 30 Defensive Hacking 10 Authchip Count 2 Trap Extractor Capacity 6 Item Schematics ----------------- Trap Extractor | -9/Mines | Hacked Cld. VTOL Module | -7/Factory | Scanalyzed Imp. Propulsion Shielding | -7/Factory | Hacked Gyrokinetic Inverter | -7/Factory | Hacked Robot Schematics ------------------ None Fabricated ------------ Trap Extractor | x2 | -7/Factory Imp. Propulsion Shielding | x2 | -7/Factory | Authchip Alien Tech Used ----------------- None Achievements -------------- None Challenges ------------ None Game ------ Seed TargetingSuperchargedWeb Manual? 0 Play Time 01:32:57 Cumulative 450.5 hours Start 2023.04.14 @ 18:12:46 End 2023.04.14 @ 19:56:51 Sessions 1 Manual Loads 0 Difficulty Rogue Special Mode None Game No. 491 Rogue 482 Adventurer 8 Explorer 1 Win Type - Total 7 Types 4/1/2/0/0/0/0/0/0 Lore% 79 Gallery% 90 Achievement% 71 Wizard Run 0 Options --------- ASCII 0 Keyboard 0 Movement Numpad Keybinds 1 Fullscreen 2 Font 18/Terminus Map View 76x50 Tactical HUD 1 Map Filters NONE Filters NONE Steam 1 RUN: 51c208c6-b934-45e2-a8f9-c5c11f1900ab